Cogmind - Beta 16 @@@ ROGUE MODE // 2025.12.18 @ 23:01:30 Player: C0-2MO Result: Destroyed by S-27 Virus with Autogun Performance ------------- Evolutions (6) 3000 Regions Visited (15) 3000 Robots Destroyed (226) 1130 Value Destroyed (10101) 10101 Prototype IDs (40) 800 Alien Tech Used (0) 0 Bonus (3186) 3186 TOTAL SCORE: 21217 Bonus ------- High Alert Combat Kills 1098 Follower Combat Kills 688 Entered Garrisons 200 Used RIF Installer 500 Network Hubs Disabled 200 Met R17 at Cetus 500 Cogmind --------- Core Integrity 0/1150 Matter 300/300 Energy 100/100 System Corruption 13% Temperature Cool (0) Movement Core (100) Ox1 Location -4/Upper Caves Parts ------- > --- POWER (2) -------- (None) > --- PROPULSION (6) --- (None) > --- UTILITY (7) ------ Experimental Heat Sink Experimental Terrain Scan Processor Improved Target Analyzer Improved Hacking Suite > --- WEAPON (4) ------- Force Lance > --- INVENTORY (5) ---- Light Antimatter Reactor Quantum Capacitor Relay Coupler [NC] (27) Peak State ------------ > --- POWER ------------ Compact Particle Reactor Antimatter-Fission Reactor > --- PROPULSION ------- Centrium Heavy Treads Hovering Antigrav-Centrium Exoskeleton > --- UTILITY ---------- Armored Scrap Engine Advanced Heat Sink Advanced Heat Sink Medium Storage Unit Medium Regenerative Plating > --- WEAPON ----------- Advanced KE Penetrator Chainsword > --- INVENTORY -------- Advanced Heat Sink Advanced Heat Sink Advanced Heat Sink Compact Battery Centrium Medium Armor Plating Centrium Medium Armor Plating Centrium Medium Armor Plating Graphene Brace Relay Coupler [NC] Remote Datajack [Rating: 99] Favorites ----------- Power Constructs Engine Subdweller Power Source Power Core Light Nuclear Core Reactor Constructs Propulsion Armored Treads Treads Armored Treads Wheel Compact Wheel Hover Unit Constructs Flight Unit VTOL Module Utility Armored Scrap Engine Device Armored Scrap Engine Storage Medium Storage Unit Processor Experimental Terrain Scan Processor Hackware Improved Hacking Suite Protection Gun Armor Weapon Constructs Energy Gun Constructs Energy Cannon Subdweller Beam Cannon Ballistic Gun High-powered Shotgun Ballistic Cannon Mini Assault Cannon Launcher Heavy Missile Launcher Special Weapon Remote Datajack Impact Weapon Makeshift Hammer Slashing Weapon Chainsword Piercing Weapon Force Lance Special Melee Weapon Advanced Datajack Build | -11 -10 -10 -8 -8 -8 -7 -7 -7 -5 -5 -5 -5 -5 -4 -4 ------- Run | Yrd Mat Sub Mat Gar Mat Fac Sto Rec Fac Ext Cet Arc Hub Fac Upp Slots Evolved 12 | . . . 4 . . 2 . . 4 . . . . 2 . Power 1 | . . . 1 . . . . . . . . . . . . Propulsion 4 | . . . 2 . . . . . 1 . . . . 1 . Utility 5 | . . . 1 . . . . . 3 . . . . 1 . Weapon 2 | . . . . . . 2 . . . . . . . . . Parts Attached 169 | 4 9 26 25 6 3 37 1 4 5 11 15 5 3 10 5 Power 24 | . 2 7 3 2 2 2 1 . 1 . 1 . . 2 1 Engine 19 | . 2 7 2 1 2 1 1 . 1 . . . . 2 . Core 3 | . . . 1 1 . 1 . . . . . . . . . Reactor 2 | . . . . . . . . . . . 1 . . . 1 Propulsion 37 | 2 1 4 7 2 1 15 . . . . 2 . . 2 1 Treads 16 | 1 1 2 5 2 1 1 . . . . 2 . . . 1 Leg . | . . . . . . . . . . . . . . . . Wheel 5 | 1 . 2 2 . . . . . . . . . . . . Hover 4 | . . . . . . 4 . . . . . . . . . Flight 12 | . . . . . . 10 . . . . . . . 2 . Utility 57 | . 2 5 6 . . 7 . 4 4 10 7 3 2 5 2 Device 28 | . . 2 2 . . 1 . 2 4 7 4 3 . 2 1 Storage 5 | . . . 2 . . 1 . 1 . 1 . . . . . Processor 5 | . . . . . . 2 . . . . . . . 2 1 Hackware 6 | . . . . . . 2 . 1 . . . . 2 1 . Protection 13 | . 2 3 2 . . 1 . . . 2 3 . . . . Artifact . | . . . . . . . . . . . . . . . . Weapon 51 | 2 4 10 9 2 . 13 . . . 1 5 2 1 1 1 Energy Gun 21 | . 2 5 6 2 . 4 . . . 1 1 . . . . Energy Cannon 2 | . . 2 . . . . . . . . . . . . . Ballistic Gun 10 | 2 . 1 2 . . 1 . . . . 4 . . . . Ballistic Cannon 6 | . . . . . . 5 . . . . . . 1 . . Launcher 2 | . 1 . 1 . . . . . . . . . . . . Special Weapon 2 | . 1 . . . . . . . . . . 1 . . . Impact Weapon 1 | . . 1 . . . . . . . . . . . . . Slashing Weapon 4 | . . 1 . . . 2 . . . . . . . . 1 Piercing Weapon 1 | . . . . . . . . . . . . . . 1 . Special Melee Weapon 2 | . . . . . . 1 . . . . . 1 . . . Unidentified Prototypes 16 | . . . 2 . . 5 . 1 . 1 5 . . 2 . Corrupted Parts 1 | . . . . . . . . . . . . . . 1 . System Corruption 3 | . . . . . . . . . . . . . . 3 . Parts Lost 85 | . . 12 5 10 9 3 . 3 1 6 11 2 1 10 12 Power 20 | . . 2 2 2 2 1 . . 1 1 3 1 1 3 1 Propulsion 26 | . . 3 1 5 3 . . 2 . 2 2 . . 4 4 Utility 20 | . . 4 1 . 1 2 . 1 . 3 1 . . 2 5 Weapon 19 | . . 3 1 3 3 . . . . . 5 1 . 1 2 Highest Loss Streak 9 | . . 5 2 7 9 2 . 2 1 2 6 1 1 6 8 To Critical Strikes 5 | . . . . . . . . . . . 5 . . . . Average Backups 8 | 2 4 4 12 16 14 7 8 4 6 7 9 8 8 8 3 Power . | . . . . . . . . . . . . . . . . Propulsion . | 1 1 . 1 1 . . 1 . . . . . . . . Utility 4 | . . 1 4 7 8 2 5 2 4 3 6 8 8 7 2 Weapon 2 | . 2 2 6 7 6 3 1 . 1 1 . . . . . Tool/Special . | . . . . . . . . . . . . . . . . Unused Backups 25 | . 2 . 2 . 7 . . 6 . . 3 1 . 2 2 Power 1 | . . . . . . . . . . . 1 . . . . Propulsion 6 | . 2 . . . . . . 3 . . 1 . . . . Utility 13 | . . . 1 . 5 . . 3 . . . 1 . 1 2 Weapon 4 | . . . 1 . 2 . . . . . 1 . . . . Tool/Special 1 | . . . . . . . . . . . . . . 1 . Average Slot Usage (%) 69 | . 91 86 88 88 72 66 89 44 60 50 59 54 59 46 36 Engine 6 | . 11 11 13 4 2 . 4 5 7 3 . 3 3 3 . Core 1 | . . . . 8 6 5 . . . 1 2 . 1 2 . Treads 10 | . 17 14 19 29 23 . . . . 2 2 4 4 . 1 Wheel 4 | . 10 13 5 . . . . 2 . . . . . . . Hover 2 | . . . . . . 8 30 8 5 2 . 2 . 5 3 Device 8 | . . 4 5 8 8 3 7 6 21 18 17 17 9 8 6 Storage 3 | . . . 5 8 7 5 7 3 5 5 5 5 5 4 . Hackware 1 | . . . . . . 2 . 1 . . . . 7 10 12 Protection 6 | . 22 14 8 8 10 . . . . . 4 4 5 . . Energy Gun 8 | . 25 15 13 16 14 1 . . . . 2 . . 1 . Energy Cannon 2 | . . 7 . . . . . . . 1 . . 2 . . Ballistic Gun 2 | . 1 1 11 2 . . . . . . 4 4 2 . . Ballistic Cannon 2 | . . . . . . 3 23 12 13 5 3 . 3 3 . Slashing Weapon 1 | . . 2 . . . 5 7 . 4 5 4 1 . . . Peak Build Rating 99 | 4 8 17 48 45 33 52 53 56 72 88 99 99 99 93 72 Average Rating 45 | 3 7 12 38 39 29 29 52 36 66 77 86 87 94 81 53 On Entrance 46 | . 4 8 17 43 33 1 49 53 56 60 87 99 93 73 64 Avg Prop Armor Cover (%) 11 | 15 10 5 8 . . 21 . . . . 10 8 . 31 26 Naked Turns 15 | . . . . . 2 8 . 5 . . . . . . . Heaviest Build 71 | 3 14 39 71 69 59 27 31 32 45 70 70 54 48 34 14 Greatest Support 145 | 10 20 40 80 80 60 32 32 64 64 145 116 80 44 38 14 Greatest Overweight (x) 5 | . 1 2 4 1 5 2 . 1 . 1 1 1 1 1 1 Average Overweight (x) . | . . . 1 . . . . . . . . . . . . Largest Inventory Capacity 20 | 5 5 5 20 20 20 8 8 8 8 10 10 10 10 10 5 Average Capacity 9 | 5 5 5 15 20 17 7 8 6 8 8 10 10 10 9 5 Most Carried 19 | 4 5 5 19 19 16 8 8 8 7 10 10 10 9 10 5 Average Carried 8 | 2 4 4 12 16 14 7 8 4 6 7 9 8 8 9 4 Final Capacity 20 | 5 5 5 20 20 5 8 8 8 8 10 10 10 10 5 5 Final Carried 18 | 4 5 5 18 16 4 8 8 8 7 10 10 8 9 5 4 Scrap Engine Consumption 132 | . . . . . . . . 27 4 51 10 19 7 10 4 Constructs Created 10 | . . . . . . . . 3 . 1 2 1 . 1 2 Constructs Modified 48 | . . . . . . . . 8 1 25 2 5 4 3 . Class Distribution -------------------- 21% | Mutant 13% | Gunner 10% | Construct 9% | Scavenger-Construct 9% | Scavenger-Mutant 7% | Subdweller-Mutant 7% | Hacker-Mutant 4% | Derelict-Mutant 4% | Scavenger-Gunner 4% | Commander-Construct Dominant Class ---------------- Mutant | -10/Materials Subdweller-Mutant | -10/Subcaves Gunner | -8/Materials Mutant | -8/Garrison Mutant | -8/Materials Scavenger-Sprinter | -7/Factory Skirmisher | -7/Storage Construct | -7/Recycling Construct | -5/Factory Construct | -5/Extension Scavenger-Gunner | -5/Cetus Scavenger-Construct | -5/Archives Scavenger-Construct | -5/Hub_04(d) Hacker-Mutant | -4/Factory Hacker-Mutant | -4/Upper Caves Resources | -11 -10 -10 -8 -8 -8 -7 -7 -7 -5 -5 -5 -5 -5 -4 -4 ----------- Run | Yrd Mat Sub Mat Gar Mat Fac Sto Rec Fac Ext Cet Arc Hub Fac Upp Matter Collected 5956 | 248 162 403 926 222 81 283 136 545 115 1183 445 465 305 255 182 Remotely 56 | . . . . . . . . . . 56 . . . . . Salvage Created 10279 | 82 286 945 2100 982 254 293 139 207 126 2360 549 652 453 498 353 Parts 500 | 5 24 61 121 50 10 14 7 8 6 81 22 27 19 23 22 Haulers Intercepted 7 | . 2 . 3 . 1 1 . . . . . . . . . Recyclers Shooed 6 | . 1 . . . 2 . . . . 1 . . . 2 . Parts Field Recycled . | . . . . . . . . . . . . . . . . Retrieved Matter . | . . . . . . . . . . . . . . . . Parts Self-Destructed 30 | . . 18 . . . . . . . . . . . . 12 Prevented 2 | . . . . . . . . . . . . . . . 2 Parts Restored . | . . . . . . . . . . . . . . . . Kills | -11 -10 -10 -8 -8 -8 -7 -7 -7 -5 -5 -5 -5 -5 -4 -4 ------- Run | Yrd Mat Sub Mat Gar Mat Fac Sto Rec Fac Ext Cet Arc Hub Fac Upp Combat Hostiles Destroyed 168 | . 5 18 40 23 3 5 3 5 4 30 8 4 8 5 7 Melee 12 | . . . . . . . . . . 4 . 2 . . 6 Guns 81 | . 1 15 35 16 1 4 . . . . 5 2 1 . 1 Cannons 56 | . . 3 . . . 1 3 5 4 25 3 . 7 5 . AOE 18 | . 4 . 5 7 2 . . . . . . . . . . Classes Destroyed 21 | 2 6 4 6 . . 1 . . . 2 . . . . . Worker 5 | . 1 . 2 . . . . . . . . . 2 . . Builder 6 | . 2 . 2 . 1 . . . . . . . . 1 . Tunneler 2 | 1 . . . . . . . . . 1 . . . . . Hauler 7 | . 2 . 3 . 1 1 . . . . . . . . . Recycler 13 | 1 . . 1 . 1 2 . 1 . 6 . . . 1 . Mechanic 1 | . . . . . . . . . . 1 . . . . . Operator 12 | . . . 1 . . 1 . . . 3 . 7 . . . Turret 2 | . . 2 . . . . . . . . . . . . . Watcher 9 | . 1 . 4 . 1 . . . . 1 1 . . 1 . Swarmer 29 | . 1 3 9 7 . 4 . . . 2 . . . . 3 Grunt 55 | . 4 . 16 12 2 . 2 . 2 12 . . 5 . . Brawler 3 | . . . 2 . . . . . . 1 . . . . . Duelist 1 | . . . 1 . . . . . . . . . . . . Sentry 32 | . . 1 8 4 1 . 1 2 . 9 . 4 1 1 . Specialist 2 | . . . 2 . . . . . . . . . . . . Hunter 9 | . . . 1 . . . . . 2 4 . . . . 2 Programmer 9 | . . . . . . 1 . . . . . . 2 4 2 Heavy 1 | . . . 1 . . . . . . . . . . . . Behemoth 1 | . . . . . . . . . . 1 . . . . . Cetus Guard 8 | . . . . . . . . . . . 8 . . . . Cobbler 1 | . . 1 . . . . . . . . . . . . . Subdweller 17 | . . 14 . . . . . 3 . . . . . . . Savage 1 | . . . . . . . . . . 1 . . . . . Guerrilla 1 | . . . . . . . . . . 1 . . . . . Best Kill Streak 10 | 2 6 3 10 4 7 5 3 2 2 6 3 2 4 3 3 Combat Bots Only 8 | . 4 3 8 4 3 4 3 2 2 5 3 1 4 2 3 Max Kills in Single Turn 3 | 1 2 1 3 3 2 2 1 1 1 2 1 1 2 1 1 Gunslinging . | . . . . . . . . . . . . . . . . Exploded 3 | . 1 . 2 3 2 . . . . . . . . . . Melee 1 | . . . . . . . . . . 1 . 1 . . 1 Uniques/NPCs Destroyed . | . . . . . . . . . . . . . . . . Combat | -11 -10 -10 -8 -8 -8 -7 -7 -7 -5 -5 -5 -5 -5 -4 -4 -------- Run | Yrd Mat Sub Mat Gar Mat Fac Sto Rec Fac Ext Cet Arc Hub Fac Upp Hostile Shots Fired 1760 | . 27 155 146 153 118 58 73 49 49 254 187 72 64 197 158 Missed 569 | . 11 52 35 54 34 17 37 15 14 87 48 12 17 77 59 Hits 1191 | . 16 103 111 99 84 41 36 34 35 167 139 60 47 120 99 Melee 1 | . . . . . 1 . . . . . . . . . . Projectile 1190 | . 16 103 111 99 83 41 36 34 35 167 139 60 47 120 99 Critical Strikes 46 | . . 2 2 3 2 . . . 1 6 19 . 1 7 3 Actively Blocked 7 | . . . . . . . . . 1 5 . . . 1 . Damage Taken 21811 | . 176 1655 1912 1461 1312 530 290 332 387 2810 3869 1614 1077 2699 1687 Core 3027 | . 43 188 148 149 242 123 59 90 53 199 359 137 83 372 782 Absorbed by Shields 740 | . . . . 32 . . . . 132 576 . . . . . Reduced by Siege Mode 94 | . . . . . . . . . . . . 34 60 . . Regen/Repaired (Parts) 4105 | . . . 155 . . 6 19 . . 1674 629 1081 466 75 . Core Remaining (%) 37 | 100 . 7 . . 2 . . 61 . . . . 16 . . Volleys Fired 717 | 2 29 82 103 69 16 15 5 10 16 113 38 90 40 67 22 Largest 4 | 2 2 2 4 3 2 4 3 4 2 2 4 1 2 1 1 Hottest 226 | 40 115 160 188 138 138 160 120 160 134 151 226 65 112 53 59 Shots Fired 1277 | 4 55 161 297 147 29 24 15 38 32 153 82 90 61 67 22 Gun 848 | 4 47 143 293 144 26 12 . . . . 54 90 12 1 22 Cannon 411 | . . 18 . . . 12 15 38 32 153 28 . 49 66 . Launcher 17 | . 7 . 4 3 3 . . . . . . . . . . Special 1 | . 1 . . . . . . . . . . . . . . Kinetic 651 | 4 . 19 125 20 . 12 15 38 32 119 58 90 31 66 22 Thermal 401 | . 48 126 50 50 26 12 . . . 34 24 . 30 1 . Explosive 17 | . 7 . 4 3 3 . . . . . . . . . . Electromagnetic 208 | . . 16 118 74 . . . . . . . . . . . Robot Hit Streak 52 | 4 11 52 15 12 5 4 5 7 5 9 25 31 11 12 3 Robot Miss Streak 9 | . 2 6 9 3 2 6 2 2 2 2 1 4 2 7 9 Penetration Max 1 | . . . . . . . . . . 1 1 1 . . . Secondary Targets 8 | . . 1 4 2 1 . . . . . . . . . . Max Gunslinging Chain 1 | . . 1 1 1 1 . . . . . . . . . . Shots Hit Robots 927 | 4 26 119 185 102 19 23 8 24 20 125 70 95 45 41 21 Core Hits 432 | 3 18 41 102 49 16 20 5 7 6 56 28 30 22 17 12 Critical Kills 4 | . . . 1 . . . . . . . 2 1 . . . Critical Parts Destroyed 4 | . . . . . . . . . . . . 3 1 . . Critical Strikes 37 | . 2 1 4 3 1 . . 1 1 5 3 7 5 1 3 Burn 11 | . 2 1 3 3 1 . . . . . 1 . . . . Destroy 9 | . . . 1 . . . . . . . 2 5 1 . . Blast 11 | . . . . . . . . 1 1 4 . . 4 1 . Sever 3 | . . . . . . . . . . 1 . 2 . . . Impale 3 | . . . . . . . . . . . . . . . 3 Melee Attacks 157 | . . 28 13 8 . 25 3 2 2 28 2 27 . . 19 Impact 32 | . . 11 13 8 . . . . . . . . . . . Slashing 108 | . . 17 . . . 25 3 2 2 28 2 27 . . 2 Piercing 17 | . . . . . . . . . . . . . . . 17 Sneak Attacks 12 | . . . . . . 3 . . . 8 . 1 . . . Combat Hostiles . | . . . . . . . . . . . . . . . . Follow-up Attacks 1 | . . . . . . . . . . . . . . . 1 Damage Inflicted 27997 | 39 755 2123 4551 2415 931 700 271 669 624 6380 2248 2610 1662 1269 750 Guns 11139 | 39 461 1765 3494 1467 345 202 . . . . 1284 1666 216 . 200 Cannons 10667 | . . 325 . . . 167 254 669 624 5263 922 . 1174 1269 . Explosions 3183 | . 293 33 1057 854 586 . . . . 88 . . 272 . . Melee 2990 | . . . . 94 . 331 . . . 1029 42 944 . . 550 Ramming 18 | . 1 . . . . . 17 . . . . . . . . Kinetic 13066 | 39 . 342 1248 205 . 167 254 669 624 3900 1720 1666 763 1269 200 Thermal 7071 | . 461 1573 1062 864 345 202 . . . 1451 486 . 627 . . Explosive 2289 | . 293 . 773 637 586 . . . . . . . . . . Electromagnetic 2563 | . . 208 1468 615 . . . . . . . . 272 . . Impact 94 | . . . . 94 . . . . . . . . . . . Slashing 2346 | . . . . . . 331 . . . 1029 42 944 . . . Piercing 550 | . . . . . . . . . . . . . . . 550 Highest Corruption 13 | . . . . . . 2 2 2 . 2 . . 4 13 13 Average Corruption 5 | . . . . . . 1 2 1 . 1 . . 2 8 11 Corruption Purged 8 | . . . . . . . . 2 . 3 . . . . 3 Corruption Blocked . | . . . . . . . . . . . . . . . . Effects 33 | . . . . . . 3 . 2 . 1 . . 3 5 19 Message Errors 13 | . . . . . . . . . . . . . 1 2 10 Matter Fused 11 | . . . . . . 3 . 1 . . . . . 1 6 Heat Flow Errors 3 | . . . . . . . . . . . . . . 1 2 Energy Discharges 3 | . . . . . . . . . . 1 . . 1 . 1 Data Loss (minor) 1 | . . . . . . . . 1 . . . . . . . Misfires 1 | . . . . . . . . . . . . . 1 . . Misdirections 1 | . . . . . . . . . . . . . . 1 . Overload Shots . | . . . . . . . . . . . . . . . . Overflow Damage 597 | . . . 29 33 . 93 . . 7 345 . . 40 37 13 Projectiles 297 | . . . . . . 28 . . 7 185 . . 40 37 . Explosions 76 | . . . 29 33 . . . . . 14 . . . . . Melee 224 | . . . . . . 65 . . . 146 . . . . 13 Knockbacks 56 | . . . . . . 3 . 1 4 23 . . 16 9 . Impact . | . . . . . . . . . . . . . . . . Kinetic 53 | . . . . . . 3 . 1 4 22 . . 14 9 . Secondary 3 | . . . . . . . . . . 1 . . 2 . . Self-Inflicted Damage 278 | . . . 153 14 . . 8 . . . . . 103 . . Shots 6 | . . . 4 1 . . . . . . . . 1 . . Rammed 3 | . 1 1 . . . . 1 . . . . . . . . Targets Rammed 4 | . 1 1 . . . . 1 . . . 1 . . . . Kicked 1 | . . . . . . . . . . . 1 . . . . Crushed . | . . . . . . . . . . . . . . . . Highest Temperature 408 | . 304 198 356 201 109 179 78 408 255 336 315 . 300 74 228 Average Temperature 85 | . 84 53 97 58 43 56 29 136 103 88 95 . 118 55 116 Received Heat Transfer 4290 | . 33 423 621 714 711 51 81 93 45 401 621 135 297 64 . Effects 4 | . . . 1 . . . . 1 . 1 1 . . . . Energy Bleed 2 | . . . . . . . . . . 1 1 . . . . Matter Decay 1 | . . . . . . . . 1 . . . . . . . Damage (minor) 1 | . . . 1 . . . . . . . . . . . . Siege Activations 3 | . . . . . . . . . . . . 1 2 . . Total Turns 88 | . . . . . . . . . . . . 48 40 . . Longest Duration 48 | . . . . . . . . . . . . 48 25 . . Martial Activations . | . . . . . . . . . . . . . . . . Shielding Activations . | . . . . . . . . . . . . . . . . Robots Disrupted 3 | . . . 1 2 . . . . . . . . . . . Combat Hostiles 3 | . . . 1 2 . . . . . . . . . . . Robots Corrupted 1 | . . . . . . . . . . 1 . . . . . Combat Hostiles 1 | . . . . . . . . . . 1 . . . . . Parts Fried 13 | . . 2 5 1 . . . . . 3 . . . 2 . Impact Corruptions 2 | . . . . . . . . . . 2 . . . . . Robots Melted . | . . . . . . . . . . . . . . . . Combat Hostiles . | . . . . . . . . . . . . . . . . Parts Melted 19 | . 2 . 5 3 2 . . 1 . 2 . . 4 . . Heat Transferred 11327 | . 1369 2849 2039 1705 740 170 . . . 901 814 . 740 . . Parts Sabotaged . | . . . . . . . . . . . . . . . . Parts Stolen . | . . . . . . . . . . . . . . . . Parts Stripped . | . . . . . . . . . . . . . . . . Power Chain Reactions 10 | . . 1 6 3 . . . . . . . . . . . Alert | -11 -10 -10 -8 -8 -8 -7 -7 -7 -5 -5 -5 -5 -5 -4 -4 ------- Run | Yrd Mat Sub Mat Gar Mat Fac Sto Rec Fac Ext Cet Arc Hub Fac Upp Maximum Alert Level 4 | . . . 3 4 2 1 . . . 3 2 . 3 1 . Low Security (%) 48 | 100 100 . 22 . . . 100 100 100 62 . 100 83 . . Level 1 28 | . . . 67 . . 100 . . . 8 13 . 14 100 . Level 2 11 | . . . 7 22 100 . . . . 15 86 . . . . Level 3 9 | . . . 2 62 . . . . . 13 . . 1 . . Level 4 1 | . . . . 14 . . . . . . . . . . . Level 5 . | . . . . . . . . . . . . . . . . High Security . | . . . . . . . . . . . . . . . . Max Security . | . . . . . . . . . . . . . . . . Peak Influence 1219 | 10 110 . 722 1219 650 360 172 96 69 959 535 157 780 386 . Initial 594 | . . . . 468 594 259 92 66 50 21 535 152 . 380 . Average 269 | 2 46 . 281 858 590 281 145 16 36 252 461 48 71 295 . Influence Increases 7328 | 10 233 175 1398 891 146 354 120 195 173 1762 179 183 920 404 185 Destroy 0b10 Robot/C 3500 | . 100 120 820 460 60 140 60 40 80 980 160 80 160 100 140 Destroy 0b10 Robot/NC 295 | 10 30 . 65 5 20 20 . 5 . 75 5 35 10 15 . Destroy Leader 582 | . 26 10 224 20 24 30 10 . 20 116 . . 40 32 30 Allied During Kill 314 | . . . 3 3 . . . . . 308 . . . . . Successful Hack 300 | . 36 . 31 . 9 19 . 108 . 35 . . . 62 . Select Force Hacks 60 | . . . 30 . . . . 30 . . . . . . . Disable Machine 465 | . . . 45 15 . 15 15 . 15 45 . 60 240 15 . Anti-Garrison Action 450 | . . . . 300 . . . . . . . . 150 . . Destroy Structure 562 | . 11 . 90 43 18 25 5 12 8 98 14 8 230 . . Advance Influence 50 | . . . . . . . . . 50 . . . . . . Partial Spotted 60 | . . . 15 . . 15 . . . . . . 30 . . Lose Combat Pursuer 690 | . 30 45 75 45 15 90 30 . . 105 . . 60 180 15 Influence Decreases 7266 | 10 233 175 678 392 795 719 153 367 130 849 753 565 143 853 451 Entered New Map 2599 | . . . . 252 625 311 113 106 . 22 421 230 . 397 122 Time Decay 3579 | 10 233 157 608 . 80 318 40 231 120 524 222 315 133 356 232 Lost Part 725 | . . 18 50 100 90 30 . 30 10 60 110 20 10 100 97 Lost Ally 363 | . . . 20 40 . 60 . . . 243 . . . . . Squads Dispatched 36 | . . . 9 . 1 9 1 . 2 3 . . 6 5 . Investigation 11 | . . . 1 . 1 5 1 . . 2 . . . 1 . Extermination 5 | . . . . . . 2 . . . . . . 1 2 . Reinforcement 17 | . . . 7 . . 2 . . 2 1 . . 3 2 . Assault 2 | . . . . . . . . . . . . . 2 . . Garrison 1 | . . . 1 . . . . . . . . . . . . Intercept . | . . . . . . . . . . . . . . . . Searches Triggered . | . . . . . . . . . . . . . . . . Construction Impeded 3 | . . . 3 . . . . . . . . . . . . Haulers Reinforced . | . . . . . . . . . . . . . . . . Active Scanning Responses . | . . . . . . . . . . . . . . . . Cargo Convoy Interrupts . | . . . . . . . . . . . . . . . . Stealth | -11 -10 -10 -8 -8 -8 -7 -7 -7 -5 -5 -5 -5 -5 -4 -4 --------- Run | Yrd Mat Sub Mat Gar Mat Fac Sto Rec Fac Ext Cet Arc Hub Fac Upp Distress Signals 13 | . 1 . 3 . 2 . 1 1 . 2 2 . . 1 . Communications Jammed . | . . . . . . . . . . . . . . . . Distress Signals . | . . . . . . . . . . . . . . . . Times Spotted 325 | . 12 24 62 28 13 17 11 6 5 61 11 24 18 23 10 Peak Tracking Total 13 | . 5 3 7 5 8 5 7 2 2 9 5 2 5 13 5 Tactical Retreats 32 | . 2 3 3 2 1 4 2 1 . 5 . . 3 5 1 Traps | -11 -10 -10 -8 -8 -8 -7 -7 -7 -5 -5 -5 -5 -5 -4 -4 ------- Run | Yrd Mat Sub Mat Gar Mat Fac Sto Rec Fac Ext Cet Arc Hub Fac Upp Traps Triggered 18 | . . 1 . 11 1 2 . . . 1 . . . 2 . Indirectly . | . . . . . . . . . . . . . . . . Trap Hack Attempts . | . . . . . . . . . . . . . . . . Triggered . | . . . . . . . . . . . . . . . . Disarmed 2 | . . . . . . . . . . . . . . 2 . Reprogrammed . | . . . . . . . . . . . . . . . . Reused . | . . . . . . . . . . . . . . . . Traps Extracted . | . . . . . . . . . . . . . . . . Installed . | . . . . . . . . . . . . . . . . Triggered . | . . . . . . . . . . . . . . . . Machines | -11 -10 -10 -8 -8 -8 -7 -7 -7 -5 -5 -5 -5 -5 -4 -4 ---------- Run | Yrd Mat Sub Mat Gar Mat Fac Sto Rec Fac Ext Cet Arc Hub Fac Upp Machines Disabled 39 | . . 2 3 4 . 1 1 . 1 5 . 4 17 1 . Max in Single Turn 13 | . . 1 1 1 . 1 1 . 1 1 . 1 13 1 . Garrison Access 5 | . . . . . . 3 1 . . . . . 1 . . Garrison Relay 3 | . . . . 3 . . . . . . . . . . . Network Hub 1 | . . . . . . . . . . . . . 1 . . Energy Cycler 1 | . . . . . . . . . . 1 . . . . . Machines Repaired . | . . . . . . . . . . . . . . . . Machines Dismantled . | . . . . . . . . . . . . . . . . Machines Sabotaged . | . . . . . . . . . . . . . . . . Overloaded Fab Kills . | . . . . . . . . . . . . . . . . Hacking | -11 -10 -10 -8 -8 -8 -7 -7 -7 -5 -5 -5 -5 -5 -4 -4 --------- Run | Yrd Mat Sub Mat Gar Mat Fac Sto Rec Fac Ext Cet Arc Hub Fac Upp Machines Accessed 71 | . 8 2 12 1 1 15 3 11 . 8 . . 2 8 . Terminals 42 | . 7 . 7 1 1 4 1 6 . 7 . . 2 6 . Fabricators 1 | . . . . . . 1 . . . . . . . . . Repair Stations 8 | . 1 . 2 . . 3 1 . . . . . . 1 . Recycling Units 8 | . . . 1 . . 2 . 4 . 1 . . . . . Scanalyzers 4 | . . . 1 . . 2 . . . . . . . 1 . Garrison Access 5 | . . . 1 . . 3 1 . . . . . . . . Total Hacks 193 | . 29 5 31 3 4 32 5 29 . 22 . . 6 27 . Successful 111 | . 18 5 21 . 4 13 2 19 . 9 . . 3 17 . Failed 81 | . 10 . 10 3 . 19 3 10 . 13 . . 3 10 . Catastrophic 14 | . . . 3 1 . 4 1 2 . 2 . . . 1 . Database Lockouts 1 | . 1 . . . . . . . . . . . . . . Manual 121 | . 20 . 17 . 2 15 2 24 . 16 . . 6 19 . Terminals 137 | . 26 . 18 3 4 13 3 19 . 20 . . 6 25 . Fabricators 2 | . . . . . . 2 . . . . . . . . . Repair Stations 17 | . 3 . 6 . . 6 1 . . . . . . 1 . Recycling Units 18 | . . . 3 . . 5 . 8 . 2 . . . . . Scanalyzers 7 | . . . 3 . . 3 . . . . . . . 1 . Garrison Access 5 | . . . 1 . . 3 1 . . . . . . . . Terminal Hacks 29 | . 7 5 2 . 2 . . 4 . 2 . . 1 6 . Record 4 | . . 4 . . . . . . . . . . . . . Robot Schematic 1 | . . . . . . . . . . 1 . . . . . Robot Analysis 2 | . 1 . . . . . . . . . . . . 1 . Prototype ID Bank 4 | . 1 . 1 . . . . 1 . . . . . 1 . Open Door 1 | . . . . . . . . . . 1 . . . . . Branch Access Points 1 | . . . . . . . . . . . . . . 1 . Terminal Index 2 | . 2 . . . . . . . . . . . . . . Locate Traps 3 | . . . . . 1 . . . . . . . . 2 . Disarm Traps 1 | . . . . . . . . . . . . . . 1 . Hauler Manifests 1 | . . . . . 1 . . . . . . . . . . Zone Layout 6 | . 3 . 1 . . . . 1 . . . . 1 . . Proto ID Catalog 1 | . . 1 . . . . . . . . . . . . . Release Object 2 | . . . . . . . . 2 . . . . . . . Fabricator Hacks 1 | . . . . . . 1 . . . . . . . . . Network Status 1 | . . . . . . 1 . . . . . . . . . Repair Station Hacks 8 | . 1 . 6 . . . . . . . . . . 1 . Scan Component 3 | . . . 3 . . . . . . . . . . . . Repair 3 | . . . 3 . . . . . . . . . . . . Refit 2 | . 1 . . . . . . . . . . . . 1 . Recycling Unit Hacks 3 | . . . . . . 2 . 1 . . . . . . . Process 1 | . . . . . . 1 . . . . . . . . . Retrieve Components 2 | . . . . . . 1 . 1 . . . . . . . Scanalyzer 6 | . . . 3 . . 2 . . . . . . . 1 . Insert Component 1 | . . . 1 . . . . . . . . . . . . Analyze 2 | . . . 2 . . . . . . . . . . . . Retrieve Study 3 | . . . . . . 2 . . . . . . . 1 . Garrison Access Hacks 5 | . . . 1 . . 3 1 . . . . . . . . Unlock Access 1 | . . . 1 . . . . . . . . . . . . Seal Access 4 | . . . . . . 3 1 . . . . . . . . Unauthorized Hacks 57 | . 10 . 9 . 2 5 1 14 . 6 . . 2 8 . Terminals 48 | . 10 . 7 . 2 3 . 10 . 6 . . 2 8 . Track 3 | . 1 . . . . . . . . . . . 2 . . Assimilate 1 | . 1 . . . . . . . . . . . . . . Botnet 15 | . 2 . 2 . 1 2 . 3 . 2 . . . 3 . Disrupt 2 | . . . . . . . . 2 . . . . . . . Operators 1 | . 1 . . . . . . . . . . . . . . Skim 26 | . 5 . 5 . 1 1 . 5 . 4 . . . 5 . Fabricators 1 | . . . . . . 1 . . . . . . . . . Liberate 1 | . . . . . . 1 . . . . . . . . . Repair Stations 2 | . . . . . . 1 1 . . . . . . . . Patch 2 | . . . . . . 1 1 . . . . . . . . Recycling Units 6 | . . . 2 . . . . 4 . . . . . . . Reject 1 | . . . 1 . . . . . . . . . . . . Mask 3 | . . . . . . . . 3 . . . . . . . Tunnel 2 | . . . 1 . . . . 1 . . . . . . . Scanalyzers . | . . . . . . . . . . . . . . . . Garrison Access . | . . . . . . . . . . . . . . . . Data Cores Recovered 2 | . . . . . . 1 . . . 1 . . . . . Used 1 | . . . . . . . . . . 1 . . . . . Hacking Detections 55 | . 7 . 10 1 1 11 1 9 . 7 . . 2 6 . Full Trace Events 8 | . . . 1 1 . 4 . . . 2 . . . . . Feedback Events 2 | . . . . . . 2 . . . . . . . . . Corruption 1 | . . . . . . 1 . . . . . . . . . Hackware Fried 1 | . . . . . . 1 . . . . . . . . . Feedback Blocked . | . . . . . . . . . . . . . . . . Robot Schematics Acquired 1 | . . . . . . . . . . 1 . . . . . Robots Built . | . . . . . . . . . . . . . . . . Authchips . | . . . . . . . . . . . . . . . . Time . | . . . . . . . . . . . . . . . . Total Robot Build Rating . | . . . . . . . . . . . . . . . . Part Schematics Acquired . | . . . . . . . . . . . . . . . . Parts Built . | . . . . . . . . . . . . . . . . Authchips . | . . . . . . . . . . . . . . . . Time . | . . . . . . . . . . . . . . . . Total Part Build Rating . | . . . . . . . . . . . . . . . . Part Studies Acquired 3 | . . . . . . 2 . . . . . . . 1 . Parts Repaired 3 | . . . 3 . . . . . . . . . . . . Time 142 | . . . 142 . . . . . . . . . . . . Parts Recycled . | . . . . . . . . . . . . . . . . Recycled Matter 74 | . . . . . . 74 . . . . . . . . . Retrieved Matter . | . . . . . . . . . . . . . . . . Retrieved Components 14 | . . . . . . 10 . 4 . . . . . . . Parts Scanalyzed 1 | . . . 1 . . . . . . . . . . . . Part Schematics Acquired . | . . . . . . . . . . . . . . . . Parts Damaged . | . . . . . . . . . . . . . . . . Bothacking | -11 -10 -10 -8 -8 -8 -7 -7 -7 -5 -5 -5 -5 -5 -4 -4 ------------ Run | Yrd Mat Sub Mat Gar Mat Fac Sto Rec Fac Ext Cet Arc Hub Fac Upp Used RIF Installer 1 | . . . . 1 . . . . . . . . . . . Robots Hacked . | . . . . . . . . . . . . . . . . Non-combat . | . . . . . . . . . . . . . . . . Combat . | . . . . . . . . . . . . . . . . Robot Hacks Applied . | . . . . . . . . . . . . . . . . Relay Couplers Released 14 | . . . . 12 . . . . . . . . 2 . . Machine Destruction 14 | . . . . 12 . . . . . . . . 2 . . Fabnet Peak Effective % . | . . . . . . . . . . . . . . . . Robots Rewired 21 | . . . 1 2 . . . . . 18 . . . . . Allies Hacked . | . . . . . . . . . . . . . . . . Hacks Repelled . | . . . . . . . . . . . . . . . . Allies | -11 -10 -10 -8 -8 -8 -7 -7 -7 -5 -5 -5 -5 -5 -4 -4 -------- Run | Yrd Mat Sub Mat Gar Mat Fac Sto Rec Fac Ext Cet Arc Hub Fac Upp Total Allies 27 | . . . 1 2 . 4 . . . 20 . . . . . Largest Group 9 | . . . 1 2 . 3 . . . 9 . . . . . Highest-Rated Group 378 | . . . 16 45 . 154 . . . 378 . . . . . Highest-Rated Ally 159 | . . . 16 25 . 86 . . . 159 . . . . . Total Orders . | . . . . . . . . . . . . . . . . Ally Attacks 227 | . . . 3 1 . 19 . . . 204 . . . . . Total Damage 4622 | . . . 50 37 . 435 . . . 4100 . . . . . Kills 29 | . . . 1 . . 3 . . . 25 . . . . . Allies Corrupted 1 | . . . . . . . . . . 1 . . . . . Allies Melted 2 | . . . . . . . . . . 2 . . . . . Intel | -11 -10 -10 -8 -8 -8 -7 -7 -7 -5 -5 -5 -5 -5 -4 -4 ------- Run | Yrd Mat Sub Mat Gar Mat Fac Sto Rec Fac Ext Cet Arc Hub Fac Upp Active Infowar (turns) 1096 | . . 168 . . . 324 . 11 254 27 . . . 312 . Optics 168 | . . 168 . . . . . . . . . . . . . Sensors 647 | . . . . . . 324 . 11 . . . . . 312 . Structural 281 | . . . . . . . . . 254 27 . . . . . Robot Analysis Total 2 | . 1 . . . . . . . . . . . . 1 . Derelict Logs Recovered 3 | . . 2 . . . . . . . . . . . . 1 Drone Launches . | . . . . . . . . . . . . . . . . Drone Recoveries . | . . . . . . . . . . . . . . . . Exploration | -11 -10 -10 -8 -8 -8 -7 -7 -7 -5 -5 -5 -5 -5 -4 -4 ------------- Run | Yrd Mat Sub Mat Gar Mat Fac Sto Rec Fac Ext Cet Arc Hub Fac Upp Turns Passed 15330 | 45 500 3507 2075 1292 173 702 85 1488 254 1687 472 1145 542 816 547 Spaces Moved 9541 | 39 372 2014 1033 498 71 1408 115 1150 192 789 243 235 227 691 464 Core 584 | 5 . . . . 6 86 . 177 . . . . . 5 305 Treads 2522 | . 66 652 443 498 65 . . . . 398 55 161 184 . . Legs 266 | . . . . . . . . . . 78 188 . . . . Wheels 2542 | 34 306 1362 590 . . . . 250 . . . . . . . Hover 2377 | . . . . . . 291 115 723 192 313 . 74 43 613 13 Flight 1250 | . . . . . . 1031 . . . . . . . 73 146 Fastest Speed 26 | 50 80 100 110 163 50 26 38 38 95 65 90 160 93 35 35 Average Speed 106 | 76 94 136 140 196 164 30 38 88 95 113 109 172 181 87 46 Slowest Speed 360 | 80 160 260 360 246 300 195 38 107 95 250 206 226 226 159 100 Overloaded Moves . | . . . . . . . . . . . . . . . . Propulsion Burnouts . | . . . . . . . . . . . . . . . . Robots Hopped 8 | . . . . . . . . . . . . . . 6 2 Potential Cave-ins . | . . . . . . . . . . . . . . . . Cave-ins Triggered . | . . . . . . . . . . . . . . . . Exploration Rate (%) 52 | 3 71 94 87 70 17 48 26 94 5 75 57 86 38 20 45 Regions Visited 15 Branch Regions 8 Pre-discovered Areas 12 | . . 3 5 . . . . 4 . . . . . . . Known Exits Taken 9 | . 1 1 1 . 1 1 1 1 1 . . . . 1 . Unknown Exits Taken 5 | 1 . . . . . . . . . 1 1 1 1 . . Scrap Searched 22 | . . 20 . . . . . . . . . . . . 2 Spaces Dug 40 | . 1 3 12 6 . 13 . 1 1 2 . . . . 1 Terrain Destroyed 470 | . 11 8 93 45 20 15 4 11 4 54 20 12 172 . 1 Melee 38 | . . 3 12 5 . 13 . 1 1 2 . . . . 1 Projectile 100 | . 1 1 . . . 2 4 10 3 38 20 10 11 . . AOE 330 | . 10 4 81 40 20 . . . . 14 . . 161 . . Terrain Rammed . | . . . . . . . . . . . . . . . . Walls Destroyed . | . . . . . . . . . . . . . . . . Machines Disabled . | . . . . . . . . . . . . . . . . Actions | -11 -10 -10 -8 -8 -8 -7 -7 -7 -5 -5 -5 -5 -5 -4 -4 --------- Run | Yrd Mat Sub Mat Gar Mat Fac Sto Rec Fac Ext Cet Arc Hub Fac Upp Total 13287 | 48 465 2557 1424 665 95 1608 139 1597 227 1386 372 847 297 828 732 Wait 2159 | . 37 363 207 14 2 76 15 406 9 218 55 475 25 41 216 Move 9513 | 38 372 2013 1033 497 70 1407 114 1149 191 788 242 234 226 678 461 Hop 7 | . . . . . . . . . . . . . . 6 1 Pick Up 71 | 4 5 7 15 3 . 8 . 10 1 6 2 4 . 6 . Fast Attach 102 | 4 2 12 17 3 3 20 1 7 2 6 10 1 1 9 4 Attach 40 | . . 7 3 5 2 4 . 1 2 3 3 2 . 3 5 Detach 25 | . 1 3 2 . . 4 . 1 . 4 . . 1 5 4 Swap 100 | . 9 21 18 6 1 19 . 1 2 4 10 4 2 2 1 Drop 100 | . 10 12 7 . 1 15 . 10 2 11 9 10 2 11 . Fire 717 | 2 29 82 103 69 16 15 5 10 16 113 38 90 40 67 22 Melee 156 | . . 28 13 8 . 25 3 2 2 28 2 27 . . 18 Ram 1 | . . . . . . . 1 . . . . . . . . Kick 1 | . . . . . . . . . . . 1 . . . . Crush 1 | . . 1 . . . . . . . . . . . . . Escape Stasis 36 | . . . . 21 . 15 . . . . . . . . . Rewire 250 | . . . 6 39 . . . . . 205 . . . . . Trap . | . . . . . . . . . . . . . . . . Miscellaneous 8 | . . 8 . . . . . . . . . . . . . Route ------- -11/Scrapyard -10/Materials (discovered 6 exits: *Mat x3 / *Min x2 / *Sub) -10/Subcaves (discovered 3 exits: *Mat x2 / *Rec) -8/Materials (discovered 4 exits: *Fac x3 / Gar) -8/Garrison (discovered 3 exits: *Mat x3) -8/Materials (discovered 2 exits: *Fac x2) -7/Factory (discovered 4 exits: *Fac / *Sto / Low x2) -7/Storage -7/Recycling -5/Factory (discovered 2 exits: *Ext x2) -5/Extension (discovered 3 exits: *Fac x2 / [*Cet]) -5/Cetus (discovered 2 exits: *Fac / [*Arc]) -5/Archives (discovered 2 exits: *Fac / *Hub) -5/Hub_04(d) -4/Factory (discovered 3 exits: *Res / *Upp x2) -4/Upper Caves (discovered 1 exit: Upp) History --------- Turn | Location | Event 9 | -11/Scrapyard | Discovered new exit (range 13) 46 | -11/Scrapyard | Entered Materials 186 | -10/Materials | Discovered new exit (range 16) 274 | -10/Materials | Discovered new exit (range 10) 279 | -10/Materials | Central database locked down 310 | -10/Materials | Build established: Mutant 336 | -10/Materials | Identified exit to Mines 336 | -10/Materials | Identified exit to Materials 379 | -10/Materials | Learned location of 2 exits from Subcaves 411 | -10/Materials | Identified exit to Subcaves 434 | -10/Materials | Learned 4 Recycling zone layouts 449 | -10/Materials | Learned location of 1 exit from Recycling 452 | -10/Materials | Learned Storage security intel 466 | -10/Materials | Learned 4 Recycling zone layouts 546 | -10/Materials | Derelicts attacked the area 546 | -10/Materials | Entered Subcaves 547 | -10/Subcaves | Approached by a straggling Scientist 547 | -10/Subcaves | Identified exit to Materials 548 | -10/Subcaves | Identified exit to Recycling 790 | -10/Subcaves | A swath of the cavern ceiling suddenly collapsed 1041 | -10/Subcaves | Shifting Twisted Machinery released Sub. Power Source 1172 | -10/Subcaves | Core integrity fell below 50% 1192 | -10/Subcaves | Lost 5 parts (1n2u2w) 1391 | -10/Subcaves | Ambushed by Subdwellers from Twisted Machinery 1483 | -10/Subcaves | A swath of the cavern ceiling suddenly collapsed 1570 | -10/Subcaves | Build established: Scavenger-Mutant 1832 | -10/Subcaves | Learned location of Zion (-7) 1832 | -10/Subcaves | Met a Zionite searching for "candidates" 1856 | -10/Subcaves | Lost 3 parts (1n1u1w) 1917 | -10/Subcaves | Shifting Twisted Machinery released Mak. System Restoration Module 1925 | -10/Subcaves | Shifting Twisted Machinery released Mak. Leg 2053 | -10/Subcaves | Disturbed a concealed Subdweller 2105 | -10/Subcaves | Visited 4L-MR0's lab 2117 | -10/Subcaves | Found Gun Armor 2183 | -10/Subcaves | Build established: Subdweller-Mutant 3237 | -10/Subcaves | Core integrity fell below 20% 3357 | -10/Subcaves | Visited Clippyterm 3360 | -10/Subcaves | Learned Research security intel 3360 | -10/Subcaves | Learned Factory garrison access intel 3373 | -10/Subcaves | Build established: Derelict-Mutant 3382 | -10/Subcaves | Shifting Twisted Machinery released Sub. Laser 3627 | -10/Subcaves | Curiously followed by a Cobbler waking with a query about "LVR3C" 3983 | -10/Subcaves | Disturbed a concealed Subdweller 4053 | -10/Subcaves | Entered Materials 4053 | -8/Materials | Evolved 4 slots: Power x1, Propulsion x2, Utility x1 4074 | -8/Materials | Build established: Mutant 4159 | -8/Materials | Attached Gun Armor, gained temporary slots: Weapon x2 4226 | -8/Materials | Discovered new exit (range 12) 4337 | -8/Materials | Repaired Riot Gun 4872 | -8/Materials | Discovered new exit (range 16) 4892 | -8/Materials | Build established: Scavenger-Gunner 5045 | -8/Materials | Learned location of Lower Caves (-6) 5200 | -8/Materials | Learned Factory stockpile data 5233 | -8/Materials | Learned Factory emergency access door positions 5290 | -8/Materials | Identified exit to Factory 5335 | -8/Materials | Learned Storage stockpile data 5357 | -8/Materials | Build established: Gunner 5467 | -8/Materials | Repaired Hvy. EM Shotgun 5512 | -8/Materials | Repaired Arc Projector 6040 | -8/Materials | Garrison activated, responded to threat 6074 | -8/Materials | Destroyed 8 combat bots 6128 | -8/Materials | Identified exit to Garrison 6128 | -8/Materials | Entered Garrison 6220 | -8/Garrison | Triggered checkpoint 6251 | -8/Garrison | Garrison Relay disabled 6328 | -8/Garrison | Installed Relay Interface Framework 6562 | -8/Garrison | Triggered checkpoint 6693 | -8/Garrison | Lost 7 parts (1p4n2w) 6793 | -8/Garrison | Discovered new exit (range 13) 6824 | -8/Garrison | Triggered checkpoint 6859 | -8/Garrison | Garrison Relay disabled 6876 | -8/Garrison | Build established: Mutant 7090 | -8/Garrison | Discovered new exit (range 8) 7152 | -8/Garrison | Triggered checkpoint 7193 | -8/Garrison | Core integrity fell below 50% 7228 | -8/Garrison | Garrison Relay disabled 7308 | -8/Garrison | Triggered checkpoint 7339 | -8/Garrison | Discovered new exit (range 10) 7386 | -8/Garrison | Triggered checkpoint 7420 | -8/Garrison | Entered Materials 7564 | -8/Materials | Discovered exit to Factory (range 15) 7581 | -8/Materials | Core integrity fell below 20% 7591 | -8/Materials | Released all parts (4) 7593 | -8/Materials | Entered Factory 7593 | -7/Factory | Evolved 2 slots: Weapon x2 7594 | -7/Factory | Identified exit to Lower Caves 7597 | -7/Factory | Loaded intel: 4 garrison access locations 7615 | -7/Factory | Lost 9 parts (2p3n1u3w) 7740 | -7/Factory | Hacking Suite fried by hacking feedback 7788 | -7/Factory | Discovered new exit (range 13) 7854 | -7/Factory | Identified exit to Factory 8292 | -7/Factory | Discovered new exit (range 9) 8295 | -7/Factory | Identified exit to Storage 8295 | -7/Factory | Entered Storage 8379 | -7/Storage | Used back door to open Recycling access 8380 | -7/Storage | Entered Recycling 8381 | -7/Recycling | Identified exit to Factory 8631 | -7/Recycling | Learned location of Warlord (-5) 8655 | -7/Recycling | Learned Factory repair station intel 8667 | -7/Recycling | Learned Extension security intel 8670 | -7/Recycling | Learned location of Extension (-5) 8671 | -7/Recycling | Learned location of 2 exits from Upper Caves 8673 | -7/Recycling | Learned Hub_04(d) emergency access door positions 8686 | -7/Recycling | Learned location of Upper Caves (-4) 8722 | -7/Recycling | Build established: Gunner 8818 | -7/Recycling | Released all parts (9) 8888 | -7/Recycling | Entered Scraplab 8889 | -7/Recycling | Found Prototype Device 8889 | -7/Recycling | Identified Scrap Engine 9124 | -7/Recycling | Build established: Mutant 9428 | -7/Recycling | Build established: Construct 9868 | -7/Recycling | Entered Factory 9868 | -5/Factory | Evolved 4 slots: Propulsion x1, Utility x3 9869 | -5/Factory | Identified exit to Extension 9870 | -5/Factory | Loaded intel: 6 repair station locations 10057 | -5/Factory | Discovered exit to Extension (range 5) 10122 | -5/Factory | Entered Extension 10331 | -5/Extension | Lost 3 allies 10596 | -5/Extension | Rescued a captive Derelict 10657 | -5/Extension | Lost 3 allies 10994 | -5/Extension | Build established: Commander-Construct 11098 | -5/Extension | Energy Cycler disabled 11098 | -5/Extension | Rescued a captive Derelict 11098 | -5/Extension | Rescued a captive Derelict 11101 | -5/Extension | Rescued A7 11112 | -5/Extension | Spotted B-75 Beast 11119 | -5/Extension | Spotted B-75 Beast 11141 | -5/Extension | Allies destroyed B-75 Beast 11149 | -5/Extension | Discovered new exit (range 14) 11160 | -5/Extension | Destroyed B-75 Beast 11172 | -5/Extension | Disrupted transfer network 11197 | -5/Extension | Lost 6 allies 11658 | -5/Extension | Extracted ID and sensor layout for unrecognized location from A7's data core 11661 | -5/Extension | Found Prototype Protection 11661 | -5/Extension | Identified Med. Regenerative Plating 11696 | -5/Extension | Discovered new exit (range 10) 11764 | -5/Extension | Discovered new exit (range 6) 11768 | -5/Extension | Lost 3 allies 11809 | -5/Extension | Entered Cetus 11821 | -5/Cetus | Spotted Cetus Guard 11821 | -5/Cetus | Spotted Cetus Guard 11823 | -5/Cetus | Spotted Cetus Guard 11824 | -5/Cetus | Spotted Cetus Guard 11848 | -5/Cetus | Destroyed Cetus Guard 11891 | -5/Cetus | Destroyed Cetus Guard 11897 | -5/Cetus | Lost 4 parts (2p1n1w) 11906 | -5/Cetus | Destroyed Cetus Guard 11921 | -5/Cetus | Destroyed Cetus Guard 12005 | -5/Cetus | Discovered new exit (range 16) 12022 | -5/Cetus | Spotted Cetus Guard 12023 | -5/Cetus | Spotted Cetus Guard 12074 | -5/Cetus | Spotted Cetus Guard 12076 | -5/Cetus | Spotted Cetus Guard 12076 | -5/Cetus | Destroyed Cetus Guard 12081 | -5/Cetus | Core integrity fell below 50% 12121 | -5/Cetus | Destroyed Cetus Guard 12123 | -5/Cetus | Destroyed Cetus Guard 12129 | -5/Cetus | Destroyed Cetus Guard 12139 | -5/Cetus | Lost 6 parts (1p1n1u3w) 12192 | -5/Cetus | Discovered new exit (range 15) 12197 | -5/Cetus | Met Revision 17 12281 | -5/Cetus | Entered Archives 12417 | -5/Archives | Build established: Scavenger-Mutant 12610 | -5/Archives | Discovered new exit (range 16) 12953 | -5/Archives | Discovered new exit (range 15) 13181 | -5/Archives | Build established: Scavenger-Construct 13426 | -5/Archives | Entered Hub_04(d) 13951 | -5/Hub_04(d) | Discovered new exit (range 11) 13960 | -5/Hub_04(d) | Network Hub disabled 13961 | -5/Hub_04(d) | Core integrity fell below 20% 13968 | -5/Hub_04(d) | Entered Factory 13968 | -4/Factory | Evolved 2 slots: Propulsion x1, Utility x1 14069 | -4/Factory | Found Quantum Capacitor 14336 | -4/Factory | Build established: Hacker-Mutant 14349 | -4/Factory | Discovered new exit (range 12) 14354 | -4/Factory | Identified exit to Upper Caves 14365 | -4/Factory | Identified exit to Research 14474 | -4/Factory | Found Prototype Processor 14474 | -4/Factory | Identified Exp. Terrain Scan Processor 14687 | -4/Factory | System corruption reached 10% 14784 | -4/Factory | Entered Upper Caves 14785 | -4/Upper Caves | Identified exit to Upper Caves 14805 | -4/Upper Caves | Lost 6 parts (1p3n1u1w) 15045 | -4/Upper Caves | Encountered a Warlord checkpoint 15121 | -4/Upper Caves | Core integrity fell below 50% 15157 | -4/Upper Caves | Lost 8 parts (1p3n3u1w) 15241 | -4/Upper Caves | Learned location of 1 exit from Research 15319 | -4/Upper Caves | Core integrity fell below 20% 15331 | -4/Upper Caves | Destroyed by S-27 Virus with Autogun Last Messages --------------- 15246_ Acquired 17 matter. 15247_ Acquired Mak. Axe. 15249_ Acquired 10 matter. 15250_ Acquired Imp. Target Analyzer. 15270_ System corrupted: Matter fused (-10). 15277_ Searching scrap... 15277_ Found Med. Storage Unit. 15277_ Found 52 Matter. 15278_ Acquired 20 matter. 15299_ G MB2/L#L>WXSUQ,SP LRE5TC%NRKAYIE 15305_ Imp. Hacking Suite destroyed. 15313_ Mak. Axe follow-up attack on S-27 Virus. 15314_ WSD9HM7M3F,|H2,HGNLG%JB/MTW9NS 15325_ Destroyed Lgt. Nuclear Core. 15326_ VTOL Module+ fries itself beyond repair. 15329_ S-27 Virus destroyed. Map ----- +----------------------------------------------------+ | ????????# #?????????????????????????????????????? | | ????????# #?????????????????????????????????????? | | ????????# #?????????????????????????????????????? | | ????????# #?????????????????????????????????????? | | ????????# #????????????#####??####??????????????? | | ????????# #???########## #### ###????????????? | | ????????# #???# #????????????? | | ????????# ##??# " #????????????? | | ??????### ##?# " #????????????? | | ??##### #?# " "" ] #????????????? | | ??# ### """" " % #????????????? | | ??# ## " """ #????????????? | | ??# ### ## """" #####????????? | | ??# #?## ### " """"" ##?????? ? | | ??# #??### ## " #?????? | | ??#! #?#### " "" #????? | | ??# %### " " """ ##???? | | ??# # """" " " ##???? | | ?## # " " | | ?# " # | | ?# # ## | | ?# #### p######## ##??##? ? | | ?# ####??### ##???????# ##???????? | | ?## ##???????## s #######???######????? | | ??## #????????## [ ## ##????# ###??? | | ???# ##???????## %@% #???## #### | | ??## ##???????## = ##### | | ??# ###????????# % # | | ??# ###??????????# ##### ## # | | ??# #????????????# ##???## ## " ### | | ??## ##????????????###?????# ### """"" ## | | ???####?????????????????????# #?# "" """" | | ????????????????????????????# ## #?# | | ????????????????????????????######?# " " | | ???????????????????????????????????# """""" | | ???????????????????????????????????# "" " | | ???????????????????????????????????# | | ???????????????????????????????????# | | ???????????????????????????????????############### | | ?????????????????????????????????????????????????? | | ?????????????????????????????????????????????????? | | ?????????????????????????????????????????????????? | | ?????????????????????????????????????????????????? | | ?????????????????????????????????????????????????? | | ?????????????????????????????????????????????????? | | ?????????????????????????????????????????????????? | | ?????????????????????????????????????????????????? | | ?????????????????????????????????????????????????? | | ?????????????????????????????????????????????????? | | ?????????????????????????????????????????????????? | +----------------------------------------------------+ Best States ------------- Heat Dissipation 97 Coolant Potential 50 Energy Generation 41 Energy Capacity 642 Matter Stores 300 Matter Capacity 300 Sight Range 21 Robot Scan Range 16 Terrain Scan Density 1010 Armor Coverage 950 Propulsion Shielding 66 Evasion (%) 64 Target Analysis 6 Core Analysis 6 Recoil Reduction 5 Offensive Hacking 36 Item Schematics ----------------- None Robot Schematics ------------------ G-50 Soldier | -5/Extension | Hacked Fabricated ------------ Nothing Repaired ---------- Riot Gun | 34% | -8/Materials Hvy. EM Shotgun | 8% | -8/Materials Arc Projector | 23% | -8/Materials Studied --------- VTOL Module | -7/Factory | Hacked Lgt. Nuclear Core | -7/Factory | Hacked Imp. Remote Datajack | -4/Factory | Hacked Alien Tech Used ----------------- None Achievements -------------- Left-hand Path Challenges ------------ None Game ------ Seed ComponentNeutronLauncher Manual? 0 Play Time 02:43:08 Cumulative 802.0 hours Start 2025.12.18 @ 20:15:58 End 2025.12.18 @ 23:01:30 Sessions 1 Manual Loads 0 Difficulty Rogue Special Mode None Game No. 329 Rogue 329 Adventurer 0 Explorer 0 Win Type - Total 85 Types 43/6/15/6/6/1/1/3/0/4 Lore% 97 Gallery% 91 Achievement% 84 Wizard Run 0 Options --------- Layout 1 ASCII 0 Keyboard 0 Movement Numpad Keybinds 0 Fullscreen 1 Font 24/Smallcaps Map View 50x35 Zoom Use 0% Tactical HUD 1 Map Filters NONE Filters NONE Steam 1 RUN: bd958f0e-7fd5-4ae3-a148-3c3b5df1ec2a